[Event "Julius Baer Generation Cup Prelims 2022"]
[Site "Online"]
[Date "2022.09.14"]
[Round "4.2"]
[White "Le, Quang Liem"]
[Black "Carlsen, Magnus"]
[Result "0-1"]
[ECO "D53"]
[WhiteElo "2728"]
[BlackElo "2861"]
[Annotator "TA"]
[PlyCount "86"]
[EventDate "2022.09.12"]
[EventType "tourn"]
[EventCountry "NET"]
[SourceTitle "playchess.com"]
[Source "ChessBase"]
[SourceQuality "1"]
[TimeControl "900+10"]

{[%evp 17,86,22,19,7,13,-42,-49,-45,-16,-43,-40,-53,-57,-78,-79,-107,-112,-112,-116,-254,-273,-280,-256,-256,-256,-256,-256,-256,-256,-263,-256,-256,-256,-256,-256,-315,-281,-360,-331,-332,-262,-262,-262,-303,-287,-302,-247,-338,-299,-568,-336,-549,-513,-843,-791,-716,-649,-1587,-1479,-3500,-1722,-29970,-29972,-29971,-29972,-29974,-29975,-29979,-29980,-29972,-29972]} 1. d4 {[%emt 0:00:00]} d5 {[%emt 0:00:00]} 2. c4 {[%emt 0:00:02]} e6 {[%emt 0:00:01]} 3. Nf3 {[%emt 0:00:02]} c6 {[%emt 0:00:02]} 4. Bg5 {[%emt 0:00:02]} Nf6 {[%emt 0:00:07]} 5. e3 {[%emt 0:00:08]} Be7 {[%emt 0:00:04]} 6. Nc3 {[%emt 0:00:03]} Nbd7 {[%emt 0:00:21]} 7. Bd3 {[%emt 0:00:38]} h6 {[%emt 0:00:27]} 8. Bh4 {[%emt 0:00:08]} dxc4 {[%emt 0:00:02]} 9. Bxc4 {[%emt 0:00:01]} b5 {[%emt 0:00:01]} 10. Bd3 {[%emt 0:00:32] D53: Queen's Gambit Declined: 4 Bg5 Be7: Early deviations.} Bb7 {[%emt 0:00:05]} 11. e4 {[%emt 0:00:58]} ({Better is} 11. Rc1 $11) 11... b4 $15 {[%emt 0:00:17]} 12. Na4 {[%emt 0:00:08] [#] Black is slightly better.} c5 $5 $146 {[%emt 0:00:01][%mdl 8] An interesting novelty.} ({Predecessor:} 12... O-O 13. e5 Nd5 14. Bxe7 Qxe7 15. Rc1 Rfc8 16. Nc5 Nxc5 17. Rxc5 Nb6 18. Be4 Ba6 {½-½ (44) Mascaro March,P (2356)-Kjartansson,G (2443) Palma de Mallorca 2021}) 13. e5 {[%emt 0:00:17]} Nd5 {[%emt 0:00:20]} 14. Bxe7 {[%emt 0:01:42]} Qxe7 {[%emt 0:00:02]} 15. dxc5 {[%emt 0:00:38]} O-O {[%emt 0:00:04]} (15... Nxc5 $6 16. Bb5+ Nd7 17. Bxd7+ Qxd7 18. Nc5 $15) 16. Rc1 {[%emt 0:00:24]} Rac8 {[%emt 0:00:08]} 17. O-O {[%emt 0:00:01] [#]} Nf4 $1 {[%emt 0:01:40]} (17... Nxc5 18. Nxc5 Rxc5 19. Qd2 $15) 18. Qd2 {[%emt 0:04:14] [#] Now White is beyond hope.} (18. Bb5 $17 {was called for.} Nxc5 19. Qd6 Qxd6 20. exd6 Nxa4 21. Rxc8 Rxc8 22. Bxa4) 18... Nxe5 $1 $19 {[%emt 0:00:27][%mdl 512]} 19. Be4 {[%emt 0:02:45]} ({Wrong is} 19. Nxe5 $2 Qg5 20. f3 Nh3+ 21. Kh1 Qxd2 $19) 19... Bxe4 {[%emt 0:01:23]} 20. Qxf4 {[%emt 0:00:02]} Nxf3+ {[%emt 0:00:00]} 21. gxf3 {[%emt 0:00:03]} Bc6 {[%emt 0:00:01]} 22. b3 {[%emt 0:00:11]} Rfd8 {[%emt 0:00:15] ...Rd5 is the strong threat.} 23. Rfd1 {[%emt 0:00:49]} Rxd1+ {[%emt 0:00:13]} 24. Rxd1 {[%emt 0:00:00]} Bxa4 {[%emt 0:00:01]} 25. bxa4 {[%emt 0:00:00]} Rxc5 {[%emt 0:00:01][%mdl 4096] Endgame KQR-KQR} 26. Kf1 {[%emt 0:00:31]} a5 {[%emt 0:00:18]} 27. Qe4 {[%emt 0:00:50]} Qg5 {[%emt 0:01:16]} 28. h4 {[%emt 0:00:30]} Qf5 {[%emt 0:00:01]} 29. Qxf5 {[%emt 0:00:46]} Rxf5 {[%emt 0:00:02] KR-KR} ({Inferior is} 29... exf5 30. Ke2 $19) 30. Rd8+ {[%emt 0:00:01]} Kh7 {[%emt 0:00:01]} 31. Kg2 {[%emt 0:00:00]} Kg6 {[%emt 0:00:13]} 32. Rb8 {[%emt 0:00:07]} Rd5 {[%emt 0:00:06] White must now prevent ...Kf6.} 33. Kg3 $2 {[%emt 0:00:15]} (33. Rg8) 33... Kf6 {[%emt 0:00:01]} 34. Rb7 $2 {[%emt 0:00:01]} (34. Kf4 {was the only defense.}) 34... Ke5 {[%emt 0:00:32]} ({Not} 34... Rd2 $2 35. Rb5 $19) 35. Rxf7 {[%emt 0:00:09]} (35. f4+ $142 Kd6 36. Ra7) 35... Rd2 {[%emt 0:00:03]} 36. f4+ {[%emt 0:01:00]} Kd4 {[%emt 0:00:05]} 37. f5 {[%emt 0:00:34]} exf5 {[%emt 0:00:04]} 38. Rxf5 {[%emt 0:00:00]} Rxa2 {[%emt 0:00:02]} 39. Rxa5 {[%emt 0:00:01]} b3 {[%emt 0:00:01][%cal Bb4b3,Bb3b2][%mdl 32] Black mates.} 40. Ra7 {[%emt 0:00:13]} b2 {[%emt 0:00:02]} 41. Rb7 {[%emt 0:00:02]} Ra3+ {[%emt 0:00:13]} 42. Kg4 {[%emt 0:00:27]} Rxa4 {[%emt 0:00:06]} 43. Kf5 {[%emt 0:00:25]} Kc3 {[%emt 0:00:01] Weighted Error Value: White=0.86/Black=0.14 (very precise)} 0-1

[Event "Julius Baer Generation Cup Prelims 2022"]
[Site "Online"]
[Date "2022.09.14"]
[Round "4.3"]
[White "Navara, David"]
[Black "Erigaisi Arjun"]
[Result "0-1"]
[ECO "B73"]
[WhiteElo "2681"]
[BlackElo "2725"]
[Annotator "ChessBase"]
[PlyCount "96"]
[EventDate "2022.09.12"]
[EventType "tourn"]
[EventCountry "NET"]
[SourceTitle "playchess.com"]
[Source "ChessBase"]
[SourceQuality "1"]
[TimeControl "900+10"]

1. e4 {[%emt 0:00:00]} c5 {[%emt 0:00:00]} 2. Nf3 {[%emt 0:00:02]} d6 {[%emt 0:00:02]} 3. d4 {[%emt 0:00:01]} cxd4 {[%emt 0:00:00]} 4. Nxd4 {[%emt 0:00:00]} Nf6 {[%emt 0:00:01]} 5. Nc3 {[%emt 0:00:01]} g6 {[%emt 0:00:00]} 6. Be3 {[%emt 0:00:14]} Bg7 {[%emt 0:00:02]} 7. Be2 {[%emt 0:00:05]} O-O {[%emt 0:00:03]} 8. O-O {[%emt 0:00:22]} Nc6 {[%emt 0:00:02]} 9. Qd2 {[%emt 0:00:04]} Bd7 {[%emt 0:00:10]} 10. Rfd1 {[%emt 0:00:26]} Rc8 {[%emt 0:00:03]} 11. f3 {[%emt 0:01:33]} Ne5 {[%emt 0:00:10]} 12. Nb3 {[%emt 0:02:12]} a6 {[%emt 0:00:18]} 13. a4 {[%emt 0:00:06]} Nc4 {[%emt 0:00:18]} 14. Bxc4 {[%emt 0:00:01]} Rxc4 {[%emt 0:00:00]} 15. a5 {[%emt 0:01:40]} Qc7 {[%emt 0:00:35]} 16. Bb6 {[%emt 0:01:41]} Qb8 {[%emt 0:00:02]} 17. Nd4 {[%emt 0:00:05]} Rfc8 {[%emt 0:00:17]} 18. Rac1 {[%emt 0:00:19]} Be8 {[%emt 0:00:17]} 19. Nd5 {[%emt 0:00:12]} Nxd5 {[%emt 0:02:45]} 20. exd5 {[%emt 0:00:00]} R8c5 {[%emt 0:00:01]} 21. Bxc5 {[%emt 0:03:21]} dxc5 {[%emt 0:00:00]} 22. Nb3 {[%emt 0:00:01]} Bxb2 {[%emt 0:00:02]} 23. Qe2 {[%emt 0:00:05]} Bb5 {[%emt 0:04:15]} 24. Qxe7 {[%emt 0:00:04]} Bxc1 {[%emt 0:00:01]} 25. Rxc1 {[%emt 0:00:00]} Qf4 {[%emt 0:00:19]} 26. d6 {[%emt 0:00:46]} Rd4 {[%emt 0:00:04]} 27. g3 {[%emt 0:01:59]} Qxd6 {[%emt 0:00:49]} 28. Qxd6 {[%emt 0:00:00]} Rxd6 {[%emt 0:00:00]} 29. Nxc5 {[%emt 0:00:01]} Bc6 {[%emt 0:00:01]} 30. Rb1 {[%emt 0:01:12]} Rd2 {[%emt 0:00:25]} 31. Nb3 {[%emt 0:00:21]} Rxc2 {[%emt 0:00:24]} 32. Nd4 {[%emt 0:00:02]} Ra2 {[%emt 0:00:01]} 33. Nxc6 {[%emt 0:00:01]} bxc6 {[%emt 0:00:00]} 34. Rb6 {[%emt 0:00:04]} Rxa5 {[%emt 0:00:00]} 35. Rxc6 {[%emt 0:00:01]} Ra2 {[%emt 0:00:01]} 36. h4 {[%emt 0:00:32]} h5 {[%emt 0:00:03]} 37. Kf1 {[%emt 0:00:36]} a5 {[%emt 0:00:02]} 38. Ra6 {[%emt 0:00:28]} a4 {[%emt 0:00:03]} 39. g4 {[%emt 0:00:18]} Kf8 {[%emt 0:01:28]} 40. Ra7 {[%emt 0:01:44]} a3 {[%emt 0:00:19]} 41. Ke1 {[%emt 0:00:09]} g5 {[%emt 0:00:51]} 42. gxh5 {[%emt 0:00:57]} gxh4 {[%emt 0:00:02]} 43. h6 {[%emt 0:00:02]} Kg8 {[%emt 0:00:05]} 44. Kf1 {[%emt 0:00:23]} h3 {[%emt 0:00:01]} 45. Kg1 {[%emt 0:00:06]} Rg2+ {[%emt 0:00:01]} 46. Kh1 {[%emt 0:00:00]} a2 {[%emt 0:00:00]} 47. h7+ {[%emt 0:00:07]} Kxh7 {[%emt 0:00:06]} 48. Rxf7+ {[%emt 0:00:09]} Rg7 {[%emt 0:00:05]} 0-1

[Event "Julius Baer Generation Cup Prelims 2022"]
[Site "Online"]
[Date "2022.09.14"]
[Round "4.4"]
[White "Niemann, Hans Moke"]
[Black "Keymer, Vincent"]
[Result "1-0"]
[ECO "A13"]
[WhiteElo "2688"]
[BlackElo "2693"]
[Annotator "ChessBase"]
[PlyCount "89"]
[EventDate "2022.09.12"]
[EventType "tourn"]
[EventCountry "NET"]
[SourceTitle "playchess.com"]
[Source "ChessBase"]
[SourceQuality "1"]
[TimeControl "900+10"]

1. c4 {[%emt 0:00:00]} Nf6 {[%emt 0:00:00]} 2. g3 {[%emt 0:00:04]} e6 {[%emt 0:00:03]} 3. Bg2 {[%emt 0:00:05]} d5 {[%emt 0:00:01]} 4. Nf3 {[%emt 0:00:08]} d4 {[%emt 0:00:01]} 5. d3 {[%emt 0:00:06]} Bb4+ {[%emt 0:00:17]} 6. Nbd2 {[%emt 0:00:11]} a5 {[%emt 0:00:03]} 7. a3 {[%emt 0:00:35]} Be7 {[%emt 0:00:07]} 8. b3 {[%emt 0:00:34]} Nc6 {[%emt 0:00:42]} 9. O-O {[%emt 0:00:07]} O-O {[%emt 0:00:03]} 10. Bb2 {[%emt 0:00:03]} e5 {[%emt 0:00:07]} 11. Qc2 {[%emt 0:00:08]} Bf5 {[%emt 0:00:13]} 12. Rad1 {[%emt 0:00:26]} Bc5 {[%emt 0:01:16]} 13. Ng5 {[%emt 0:01:09]} Qe7 {[%emt 0:00:37]} 14. Qc1 {[%emt 0:00:03]} Bg4 {[%emt 0:01:24]} 15. Rde1 {[%emt 0:00:15]} Nd7 {[%emt 0:01:19]} 16. Nde4 {[%emt 0:01:37]} h6 {[%emt 0:00:09]} 17. Nf3 {[%emt 0:00:42]} Ba7 {[%emt 0:01:10]} 18. Ned2 {[%emt 0:02:05]} Qe6 {[%emt 0:00:37]} 19. e4 {[%emt 0:00:24]} dxe3 {[%emt 0:01:18]} 20. fxe3 {[%emt 0:00:03]} Nc5 {[%emt 0:00:00]} 21. Qc3 {[%emt 0:00:03]} Qg6 {[%emt 0:01:35]} 22. d4 {[%emt 0:00:03]} exd4 {[%emt 0:00:55]} 23. exd4 {[%emt 0:00:03]} Nd3 {[%emt 0:00:01]} 24. Nh4 {[%emt 0:00:09]} Bxd4+ {[%emt 0:01:53]} 25. Qxd4 {[%emt 0:00:03]} Nxd4 {[%emt 0:00:06]} 26. Nxg6 {[%emt 0:00:05]} Ne2+ {[%emt 0:00:59]} 27. Rxe2 {[%emt 0:00:32]} Bxe2 {[%emt 0:00:00]} 28. Ne7+ {[%emt 0:00:02]} Kh8 {[%emt 0:00:03]} 29. Rb1 {[%emt 0:00:13]} Rae8 {[%emt 0:00:12]} 30. Nd5 {[%emt 0:00:41]} Nxb2 {[%emt 0:00:09]} 31. Rxb2 {[%emt 0:00:03]} c6 {[%emt 0:00:01]} 32. Nf4 {[%emt 0:00:46]} Bg4 {[%emt 0:00:24]} 33. Ne4 {[%emt 0:00:03]} Rd8 {[%emt 0:00:23]} 34. c5 {[%emt 0:00:33]} g5 {[%emt 0:00:59]} 35. Ne2 {[%emt 0:00:15]} Rd3 {[%emt 0:01:07]} 36. Bf1 {[%emt 0:00:19]} f5 {[%emt 0:01:31]} 37. Nd6 {[%emt 0:00:39]} b6 {[%emt 0:00:05]} 38. Nc4 {[%emt 0:00:13]} bxc5 {[%emt 0:00:21]} 39. Nf4 {[%emt 0:00:01]} Rc3 {[%emt 0:00:52]} 40. Ng6+ {[%emt 0:00:03]} Kg7 {[%emt 0:00:01]} 41. Nxf8 {[%emt 0:00:01]} Kxf8 {[%emt 0:00:00]} 42. Nxa5 {[%emt 0:00:11]} Ke7 {[%emt 0:00:12]} 43. Nxc6+ {[%emt 0:00:03]} Kd6 {[%emt 0:00:01]} 44. Na5 {[%emt 0:00:00]} Ke5 {[%emt 0:00:26]} 45. Nc4+ {[%emt 0:00:05]} 1-0

[Event "Julius Baer Generation Cup Prelims 2022"]
[Site "Online"]
[Date "2022.09.14"]
[Round "4.5"]
[White "Aronian, Levon"]
[Black "Wojtaszek, Radoslaw"]
[Result "1-0"]
[ECO "D00"]
[WhiteElo "2759"]
[BlackElo "2696"]
[Annotator "ChessBase"]
[PlyCount "85"]
[EventDate "2022.09.12"]
[EventType "tourn"]
[EventCountry "NET"]
[SourceTitle "playchess.com"]
[Source "ChessBase"]
[SourceQuality "1"]
[TimeControl "900+10"]

1. d4 {[%emt 0:00:00]} Nf6 {[%emt 0:00:00]} 2. Bg5 {[%emt 0:00:03]} d5 {[%emt 0:00:03]} 3. Bxf6 {[%emt 0:00:00]} gxf6 {[%emt 0:00:02]} 4. c4 {[%emt 0:00:01]} dxc4 {[%emt 0:00:16]} 5. e3 {[%emt 0:00:07]} c5 {[%emt 0:00:03]} 6. Bxc4 {[%emt 0:00:02]} cxd4 {[%emt 0:00:05]} 7. exd4 {[%emt 0:00:01]} Bg7 {[%emt 0:00:06]} 8. Nc3 {[%emt 0:00:06]} Nc6 {[%emt 0:00:17]} 9. Nge2 {[%emt 0:00:04]} f5 {[%emt 0:00:16]} 10. O-O {[%emt 0:00:47]} O-O {[%emt 0:00:28]} 11. d5 {[%emt 0:00:04]} Ne5 {[%emt 0:00:02]} 12. Bb3 {[%emt 0:00:02]} a6 {[%emt 0:00:16]} 13. Ng3 {[%emt 0:00:25]} Qd6 {[%emt 0:00:36]} 14. Nce2 {[%emt 0:02:02]} Qh6 {[%emt 0:00:53]} 15. Qc1 {[%emt 0:00:33]} Qxc1 {[%emt 0:02:37]} 16. Raxc1 {[%emt 0:00:00]} Bd7 {[%emt 0:00:01]} 17. Nd4 {[%emt 0:01:51]} f4 {[%emt 0:00:54]} 18. Ngf5 {[%emt 0:00:51]} Bf6 {[%emt 0:00:12]} 19. Rc7 {[%emt 0:00:02]} b5 {[%emt 0:01:48]} 20. d6 {[%emt 0:04:08]} exd6 {[%emt 0:01:48]} 21. Nxd6 {[%emt 0:00:25]} Rad8 {[%emt 0:00:33]} 22. N4f5 {[%emt 0:00:46]} Bxf5 {[%emt 0:00:32]} 23. Nxf5 {[%emt 0:00:00]} Rd2 {[%emt 0:00:01]} 24. Ra7 {[%emt 0:00:03]} Rxb2 {[%emt 0:00:52]} 25. Rxa6 {[%emt 0:00:02]} Bd8 {[%emt 0:00:01]} 26. h3 {[%emt 0:01:47]} f3 {[%emt 0:00:19]} 27. Rd1 {[%emt 0:00:41]} Bg5 {[%emt 0:01:04]} 28. h4 {[%emt 0:00:44]} Bd2 {[%emt 0:00:15]} 29. Rd6 {[%emt 0:00:07]} Bc3 {[%emt 0:02:03]} 30. Rd8 {[%emt 0:01:40]} Nc6 {[%emt 0:00:50]} 31. R8d3 {[%emt 0:00:43]} Ba5 {[%emt 0:01:54]} 32. Rxf3 {[%emt 0:00:06]} Rd8 {[%emt 0:00:02]} 33. Rxd8+ {[%emt 0:00:46]} Nxd8 {[%emt 0:00:12]} 34. g3 {[%emt 0:00:11]} Bb6 {[%emt 0:00:12]} 35. Nd6 {[%emt 0:00:05]} Kg7 {[%emt 0:00:19]} 36. Nxb5 {[%emt 0:00:02]} Nc6 {[%emt 0:00:11]} 37. Rxf7+ {[%emt 0:00:09]} Kg6 {[%emt 0:00:01]} 38. Nd6 {[%emt 0:00:16]} Ne5 {[%emt 0:00:04]} 39. h5+ {[%emt 0:00:15]} Kg5 {[%emt 0:00:38]} 40. Rf5+ {[%emt 0:00:14]} Kg4 {[%emt 0:00:02]} 41. Rf4+ {[%emt 0:00:03]} Kxh5 {[%emt 0:00:13]} 42. Rf5+ {[%emt 0:00:02]} Kg4 {[%emt 0:00:09]} 43. Bd1+ {[%emt 0:00:02]} 1-0

[Event "Julius Baer Generation Cup Prelims 2022"]
[Site "Online"]
[Date "2022.09.14"]
[Round "4.6"]
[White "Praggnanandhaa R"]
[Black "Yoo, Christopher Woojin"]
[Result "0-1"]
[ECO "D00"]
[WhiteElo "2676"]
[BlackElo "2563"]
[Annotator "ChessBase"]
[PlyCount "134"]
[EventDate "2022.09.12"]
[EventType "tourn"]
[EventCountry "NET"]
[SourceTitle "playchess.com"]
[Source "ChessBase"]
[SourceQuality "1"]
[TimeControl "900+10"]

1. d4 {[%emt 0:00:00]} Nf6 {[%emt 0:00:00]} 2. Nc3 {[%emt 0:00:02]} d5 {[%emt 0:00:03]} 3. Bf4 {[%emt 0:00:01]} e6 {[%emt 0:00:03]} 4. Nb5 {[%emt 0:00:02]} Bb4+ {[%emt 0:00:01]} 5. c3 {[%emt 0:00:01]} Ba5 {[%emt 0:00:01]} 6. e3 {[%emt 0:00:02]} a6 {[%emt 0:00:06]} 7. Na3 {[%emt 0:00:03]} O-O {[%emt 0:00:02]} 8. Nf3 {[%emt 0:00:15]} Nbd7 {[%emt 0:00:53]} 9. Be2 {[%emt 0:00:03]} c5 {[%emt 0:00:33]} 10. O-O {[%emt 0:01:38]} Bc7 {[%emt 0:00:14]} 11. Bg5 {[%emt 0:00:54]} h6 {[%emt 0:00:03]} 12. Bh4 {[%emt 0:00:02]} b5 {[%emt 0:00:05]} 13. Nc2 {[%emt 0:00:22]} Bb7 {[%emt 0:00:06]} 14. a4 {[%emt 0:00:06]} c4 {[%emt 0:00:28]} 15. Nd2 {[%emt 0:00:46]} Bd6 {[%emt 0:01:11]} 16. b3 {[%emt 0:01:22]} Qc7 {[%emt 0:01:57]} 17. axb5 {[%emt 0:01:47]} axb5 {[%emt 0:00:34]} 18. bxc4 {[%emt 0:00:03]} dxc4 {[%emt 0:00:45]} 19. Bg3 {[%emt 0:00:45]} Bxg3 {[%emt 0:00:22]} 20. hxg3 {[%emt 0:00:02]} Nd5 {[%emt 0:00:01]} 21. Rxa8 {[%emt 0:00:11]} Rxa8 {[%emt 0:00:04]} 22. Nb1 {[%emt 0:00:09]} N7f6 {[%emt 0:02:45]} 23. Bf3 {[%emt 0:00:58]} Qa5 {[%emt 0:01:03]} 24. Qd2 {[%emt 0:00:47]} Qa2 {[%emt 0:00:59]} 25. Qc1 {[%emt 0:00:55]} Qb3 {[%emt 0:00:16]} 26. Nca3 {[%emt 0:00:33]} Qa4 {[%emt 0:01:57]} 27. Re1 {[%emt 0:00:22]} g5 {[%emt 0:00:54]} 28. Re2 {[%emt 0:02:09]} g4 {[%emt 0:01:08]} 29. Bxd5 {[%emt 0:00:12]} Bxd5 {[%emt 0:00:00]} 30. Rb2 {[%emt 0:00:05]} Rb8 {[%emt 0:00:02]} 31. Nc2 {[%emt 0:01:02]} Be4 {[%emt 0:01:28]} 32. Nd2 {[%emt 0:00:58]} Qa8 {[%emt 0:00:04]} 33. Ne1 {[%emt 0:01:02]} Kg7 {[%emt 0:00:15]} 34. Kh2 {[%emt 0:00:24]} Qa3 {[%emt 0:00:19]} 35. f3 {[%emt 0:00:18]} Bg6 {[%emt 0:00:41]} 36. e4 {[%emt 0:00:14]} gxf3 {[%emt 0:00:16]} 37. gxf3 {[%emt 0:00:02]} Nd7 {[%emt 0:00:29]} 38. Nb1 {[%emt 0:00:31]} Qd6 {[%emt 0:00:08]} 39. Ng2 {[%emt 0:00:26]} e5 {[%emt 0:00:03]} 40. Rd2 {[%emt 0:00:24]} Qf6 {[%emt 0:00:02]} 41. Nh4 {[%emt 0:00:17]} Ra8 {[%emt 0:00:46]} 42. Qb2 {[%emt 0:00:08]} Rb8 {[%emt 0:00:28]} 43. Qb4 {[%emt 0:00:19]} exd4 {[%emt 0:00:19]} 44. cxd4 {[%emt 0:00:06]} Qg5 {[%emt 0:00:20]} 45. f4 {[%emt 0:00:13]} Qd8 {[%emt 0:00:10]} 46. Nc3 {[%emt 0:00:10]} Nf6 {[%emt 0:00:10]} 47. Nxg6 {[%emt 0:00:27]} Kxg6 {[%emt 0:00:01]} 48. Kg2 {[%emt 0:00:11]} Qd7 {[%emt 0:00:05]} 49. d5 {[%emt 0:00:10]} h5 {[%emt 0:00:18]} 50. Ra2 {[%emt 0:00:27]} Kg7 {[%emt 0:00:11]} 51. Ra6 {[%emt 0:00:47]} h4 {[%emt 0:00:03]} 52. Qb2 {[%emt 0:00:06]} b4 {[%emt 0:00:13]} 53. Nb5 {[%emt 0:00:19]} c3 {[%emt 0:00:04]} 54. Nxc3 {[%emt 0:00:02]} bxc3 {[%emt 0:00:08]} 55. Qxb8 {[%emt 0:00:11]} Qg4 {[%emt 0:00:03]} 56. Rxf6 {[%emt 0:00:18]} Qxg3+ {[%emt 0:00:06]} 57. Kf1 {[%emt 0:00:17]} Kxf6 {[%emt 0:00:09]} 58. Qh8+ {[%emt 0:00:05]} Kg6 {[%emt 0:00:16]} 59. Qg8+ {[%emt 0:00:12]} Kh5 {[%emt 0:00:07]} 60. Qxf7+ {[%emt 0:00:10]} Kg4 {[%emt 0:00:13]} 61. d6 {[%emt 0:00:14]} Qf3+ {[%emt 0:00:03]} 62. Kg1 {[%emt 0:00:11]} Qe3+ {[%emt 0:00:01]} 63. Kf1 {[%emt 0:00:10]} Qc1+ {[%emt 0:00:06]} 64. Kf2 {[%emt 0:00:05]} Qd2+ {[%emt 0:00:01]} 65. Kf1 {[%emt 0:00:04]} c2 {[%emt 0:00:14]} 66. Qg8+ {[%emt 0:00:20]} Kh3 {[%emt 0:00:08]} 67. Qb3+ {[%emt 0:00:12]} Kh2 {[%emt 0:00:05]} 0-1

[Event "Julius Baer Generation Cup Prelims 2022"]
[Site "Online"]
[Date "2022.09.14"]
[Round "5.1"]
[White "Duda, Jan-Krzysztof"]
[Black "Giri, Anish"]
[Result "1-0"]
[ECO "E60"]
[WhiteElo "2731"]
[BlackElo "2764"]
[Annotator "TA"]
[PlyCount "115"]
[EventDate "2022.09.12"]
[EventType "tourn"]
[EventCountry "NET"]
[SourceTitle "playchess.com"]
[Source "ChessBase"]
[SourceQuality "1"]
[TimeControl "900+10"]

{[%evp 9,115,24,24,27,35,14,22,16,23,12,25,23,25,24,66,57,76,-35,-24,-53,0,0,0,-13,0,-45,0,0,0,0,0,7,8,13,58,65,62,44,83,83,88,89,85,83,126,89,79,0,0,0,0,0,0,0,12,0,8,0,0,-77,-68,-65,-54,-66,-16,-19,0,0,0,0,0,0,0,0,0,0,0,0,0,0,0,0,0,0,0,0,0,0,0,0,329,381,359,345,348,325,282,267,823,685,989,954,29971,29973,29963,29968,29981,29982]} 1. d4 {[%emt 0:00:00]} Nf6 {[%emt 0:00:00]} 2. c4 {[%emt 0:00:06]} g6 {[%emt 0:00:01]} 3. f3 {[%emt 0:00:06]} e6 {[%emt 0:00:18]} 4. e4 {[%emt 0:00:10]} c5 {[%emt 0:00:00]} 5. d5 {[%emt 0:00:11]} d6 {[%emt 0:00:04]} (5... Nxe4 $2 6. fxe4 Qh4+ 7. Ke2 $18) 6. Nc3 {[%emt 0:00:04] E60: King's Indian: Unusual lines and Fianchetto Variation without Nc3.} Bg7 {[%emt 0:00:10]} 7. Nge2 {[%emt 0:00:05]} (7. Bg5 {with more complications.} a6 8. a4 O-O 9. Qd2) 7... exd5 {[%emt 0:00:05]} 8. cxd5 {[%emt 0:00:02] The position is equal.} (8. Nxd5 Nxd5 9. cxd5 (9. exd5 Qh4+ 10. Ng3 O-O $17) (9. Qxd5 Nc6 $15) 9... O-O $15) 8... a6 {[%emt 0:00:16]} 9. a4 {[%emt 0:00:03]} Nbd7 {[%emt 0:00:04] 9...Nbd7 scores better than 9...0-0.} 10. Ng3 {[%emt 0:00:01]} h5 {[%emt 0:00:06]} 11. Be2 {[%emt 0:00:07]} h4 {[%emt 0:00:01]} 12. Nf1 {[%emt 0:00:01]} Rb8 {[%emt 0:00:09]} 13. Ne3 {[%emt 0:00:09]} (13. Bg5 $16) 13... Nh5 $1 $15 {[%emt 0:00:33] [#]} 14. a5 $146 {[%emt 0:01:18]} ({Predecessor:} 14. Nc4 Ne5 15. Be3 g5 16. O-O Nxc4 17. Bxc4 Be5 18. Qd2 Nf4 19. Ra3 Qa5 20. Rb3 {0-1 (34) Cebrian Ramos,J (2056)-Ivanov,J (2382) Cambados 2007}) 14... Ne5 {[%emt 0:01:36]} ({Black should play} 14... Nf4 $15) 15. O-O $11 {[%emt 0:00:44] f4 is the strong threat.} Nf4 {[%emt 0:00:42]} 16. Kh1 {[%emt 0:00:03][%cal Oe3f5]} O-O {[%emt 0:00:30]} 17. Rf2 {[%emt 0:01:20]} (17. Ng4 $5 {[%cal Rc1f4]} Nxe2 18. Qxe2 $15) 17... b5 {[%emt 0:00:31]} (17... f5 $15) 18. axb6 $1 {[%emt 0:00:03]} Qxb6 {[%emt 0:01:44]} 19. Nc4 {[%emt 0:01:42]} Nxc4 {[%emt 0:00:02]} 20. Bxc4 {[%emt 0:00:00]} Be5 {[%emt 0:00:19]} 21. Ne2 {[%emt 0:02:21]} g5 {[%emt 0:00:03]} 22. Nxf4 {[%emt 0:00:27]} gxf4 {[%emt 0:00:02]} 23. Rc2 {[%emt 0:00:11]} Kg7 {[%emt 0:00:13]} 24. Bd2 {[%emt 0:01:17]} f5 {[%emt 0:02:49]} 25. Bc3 {[%emt 0:01:36]} Bxc3 {[%emt 0:00:32]} 26. bxc3 {[%emt 0:00:00]} a5 {[%emt 0:01:24]} 27. Qe1 {[%emt 0:00:22]} fxe4 {[%emt 0:00:23]} 28. Qxh4 {[%emt 0:00:54]} (28. fxe4 $16 h3 29. Rd2 (29. Qh4 Qb1+ 30. Rc1 hxg2+ 31. Kg1 Qxe4 $17)) 28... Qd8 {[%emt 0:00:04]} 29. Qxd8 {[%emt 0:00:26]} Rxd8 {[%emt 0:00:00]} 30. fxe4 {[%emt 0:00:00]} Re8 {[%emt 0:00:47]} 31. Bd3 {[%emt 0:00:07]} Kf6 {[%emt 0:01:19]} 32. Rf2 {[%emt 0:01:55]} Ke5 {[%emt 0:00:08]} 33. Bc2 {[%emt 0:00:13] Prevents Rb3.} Bd7 {[%emt 0:01:40][%cal Oa5a4]} 34. h3 {[%emt 0:01:47]} (34. Kg1 $11) 34... Ra8 $1 $17 {[%emt 0:00:21]} 35. Ba4 {[%emt 0:00:02]} Bxa4 {[%emt 0:00:32]} 36. Rxa4 $15 {[%emt 0:00:00][%cal Og2g3][%mdl 4096] Endgame KRR-KRR} Rf8 {[%emt 0:00:30]} ({Black should try} 36... Rg8 $15) 37. Kh2 $11 {[%emt 0:00:24]} Rf7 {[%emt 0:00:48]} 38. Rf3 {[%emt 0:00:56]} Rb8 {[%emt 0:01:16]} 39. Rxa5 {[%emt 0:01:20]} Rb2 {[%emt 0:00:36]} 40. Ra8 {[%emt 0:00:08] Black must now prevent Re8+.} Kxe4 {[%emt 0:00:02] aiming for ...Rg7.} 41. Rg8 {[%emt 0:00:05] Prevents Rg7.} Kxd5 {[%emt 0:00:15]} 42. h4 {[%emt 0:00:05]} Ke4 {[%emt 0:00:40]} 43. Kh3 {[%emt 0:00:27]} Rbb7 {[%emt 0:00:26]} 44. Re8+ {[%emt 0:00:22]} Rbe7 {[%emt 0:00:01]} 45. Rd8 {[%emt 0:00:35]} d5 {[%emt 0:00:11]} 46. Rf1 {[%emt 0:00:16] And now Re1+ would win.} Rd7 {[%emt 0:00:02]} 47. Re8+ {[%emt 0:00:04]} Kd3 {[%emt 0:00:02]} 48. Rf3+ {[%emt 0:00:19]} Kc4 {[%emt 0:00:02]} 49. h5 {[%emt 0:00:10]} Rd6 $2 {[%emt 0:00:18][%mdl 8192] [#]} (49... d4 $11 {and Black has nothing to worry.} 50. cxd4 cxd4) 50. g4 $1 $18 {[%emt 0:00:05][%cal Bg2g4,Bg4g5,Bg5g6][%mdl 32]} d4 {[%emt 0:00:10]} 51. cxd4 {[%emt 0:00:01]} cxd4 {[%emt 0:00:08]} 52. Rc8+ {[%emt 0:00:01]} Kd5 {[%emt 0:00:02] [#]} 53. g5 $1 {[%emt 0:00:02]} Ke4 $2 {[%emt 0:00:07]} (53... Ke5 54. Rf2 (54. Kg4 d3 $16) 54... d3) 54. Kg4 {[%emt 0:00:02]} d3 {[%emt 0:00:07]} 55. g6 {[%emt 0:00:29]} ({Less strong is} 55. Re8+ Kd4 $16) 55... Re7 {[%emt 0:00:56]} 56. Rc4+ {[%emt 0:00:21] White mates.} Ke5 {[%emt 0:00:01]} 57. Rcxf4 {[%emt 0:00:03]} Ke6 {[%emt 0:00:12]} 58. Rf6+ {[%emt 0:00:04] Weighted Error Value: White=0.12 (very precise) /Black=0.37} 1-0